bitfinex/quotes_ETHUSD_20220202
["timestamp","ask_amount","ask_price","bid_price","bid_amount"]
[1643817916615,0.33413011,2653.3,2652.8,0.11592171]
[1643817916812,0.3,2653.4,2652.8,0.11592171]
[1643817917060,0.02611996,2653.5,2652.8,0.11464098]
[1643817917260,0.1884,2654.0,2652.8,0.11464098]
[1643817917460,2.74353228,2654.2,2652.9,0.1884]
[1643817917661,2.74353228,2654.2,2652.1,3.15768]
[1643817917662,0.03903083,2653.0,2651.8,0.00711571]
[1643817917862,0.03903083,2653.0,2651.5,0.18845]
[1643817917863,0.02611996,2651.9,2650.6,5.18008387]
[1643817918065,0.02611996,2651.9,2650.5,12.22360932]
[1643817918066,1.02611996,2650.7,2650.5,1.5439939]
[1643817918262,1.02611996,2650.7,2650.4,0.1885]
[1643817918462,0.02611996,2650.5,2650.4,0.1885]
[1643817918693,0.02611996,2650.5,2650.2,1.0706829]
[1643817918694,4.24128007,2650.5,2650.2,1.0706829]
[1643817918860,0.02611996,2650.3,2650.2,1.0706829]
[1643817919259,0.77811996,2650.3,2650.2,1.0706829]
[1643817920163,3.15512485,2650.5,2650.2,1.0706829]
[1643817920360,0.452,2651.1,2650.2,1.0706829]
[1643817920361,0.02611996,2650.7,2650.2,1.0706829]
[1643817920566,0.02611996,2650.7,2650.2,1.0206829]
[1643817921011,1.13218,2651.4,2650.2,1.0206829]
[1643817921212,0.02611996,2650.7,2650.6,0.81530104]
[1643817921418,0.02611996,2651.6,2650.7,0.0261]
[1643817921684,0.452,2651.8,2650.9,5.8]
[1643817921849,0.21461996,2652.2,2651.0,2.45137972]
[1643817922014,0.02611996,2652.2,2651.0,1.18845]
[1643817922214,3.17693865,2652.2,2651.1,0.00126003]
[1643817922414,3.15081869,2652.2,2652.1,0.97516105]
[1643817922613,3.17693865,2652.2,2652.1,0.75378122]
[1643817923013,3.15081869,2652.2,2652.1,0.75378122]
[1643817923218,0.77869997,2653.1,2652.2,3.75]
[1643817923219,0.1885,2653.1,2652.2,3.75]
[1643817923415,0.02611996,2653.4,2652.2,3.75]
[1643817923817,0.02611996,2653.4,2653.3,0.20665339]
[1643817924016,0.02611996,2653.4,2653.3,0.96615483]
[1643817924213,0.02611996,2653.4,2652.5,0.00443619]
[1643817924417,0.20096446,2653.8,2652.5,0.00443619]
[1643817924662,0.21451996,2654.2,2652.8,0.97388003]
[1643817924861,0.28619997,2654.4,2652.9,3.47450527]
[1643817925058,0.13819997,2654.4,2653.0,0.00443535]
[1643817925257,0.13819997,2654.4,2654.1,0.19227678]
[1643817925459,0.13819997,2654.4,2653.0,0.00443535]
[1643817925460,0.02611996,2654.2,2653.0,0.00443535]
[1643817925659,0.13819997,2654.4,2653.0,0.00443535]
[1643817925864,0.01291645,2654.0,2653.0,0.00443535]
[1643817926059,0.02611996,2653.3,2653.0,0.00443535]
[1643817926259,0.02611996,2653.3,2652.7,1.1815]
[1643817926459,0.01291645,2654.0,2653.7,0.91255595]
[1643817926658,0.03903641,2654.0,2652.8,3.11905679]
[1643817926859,0.03903641,2654.0,2653.7,0.69603158]
[1643817927058,0.02611996,2653.8,2653.7,0.69603158]
[1643817927656,0.02611996,2653.8,2653.7,0.89986715]
[1643817927859,0.1416,2654.3,2653.8,3.55]
[1643817928068,1.06932801,2654.8,2653.8,3.55]
[1643817928069,0.1882,2654.7,2653.8,3.55]
[1643817928305,0.1882,2654.7,2654.6,0.76602138]
[1643817928611,1.11729,2654.7,2654.6,0.76602138]
[1643817928805,0.16468802,2654.8,2654.6,0.76602138]
[1643817929007,0.1882,2655.4,2654.7,5.0]
[1643817929205,0.02611996,2655.6,2654.8,0.01]
[1643817929403,0.86382999,2656.3,2654.8,0.01]
[1643817929703,0.67562999,2656.2,2654.9,0.67074507]
[1643817929904,0.00511708,2655.3,2654.9,0.67074507]
[1643817930102,0.00511708,2655.3,2655.0,0.94183]
[1643817930301,0.00511708,2655.3,2655.0,0.95183]
[1643817931002,0.02611996,2655.5,2655.1,0.18669022]
[1643817931206,0.02611996,2655.5,2655.1,0.19669022]
[1643817931403,0.02611996,2655.6,2655.1,0.19669022]
[1643817931807,2.17611996,2655.2,2655.1,0.01]
[1643817932060,2.17611996,2655.2,2654.5,0.01]
[1643817932365,0.02611996,2655.0,2654.5,0.01]
[1643817932557,0.02611996,2655.0,2654.1,1.2135]
[1643817932558,0.02611996,2655.2,2654.4,0.01]
[1643817932762,0.21431996,2655.6,2654.5,0.2179595]
[1643817932961,0.02611996,2655.6,2654.5,1.39929132]
[1643817933157,0.02611996,2655.6,2654.7,1.88363]
[1643817933358,0.02611996,2655.6,2654.8,0.01]
[1643817933556,0.27639994,2656.3,2654.8,0.01]
[1643817933557,0.1882,2656.2,2654.8,0.01]
[1643817933764,0.02611996,2655.1,2654.8,0.01]
[1643817933957,0.1882,2655.8,2654.9,0.19392657]
[1643817934157,0.1882,2655.8,2654.9,0.14392657]
[1643817934158,0.00210957,2655.2,2654.9,0.14392657]
[1643817934759,0.00210957,2655.2,2655.0,0.94179]
[1643817934958,0.02611996,2655.1,2655.0,0.95179]
[1643817935162,0.02611996,2655.1,2655.0,2.59744]
[1643817935558,0.02611996,2655.1,2655.0,3.30401224]
[1643817935816,0.02611996,2655.1,2654.9,0.14392657]
[1643817936014,0.02611996,2655.1,2654.1,1.2135]
[1643817936015,0.21431996,2655.1,2654.1,1.2135]
[1643817936211,0.21431996,2655.1,2654.2,0.19603061]
[1643817936212,0.22417664,2655.0,2654.2,0.19603061]
[1643817936418,0.1882,2655.1,2654.2,0.19603061]
[1643817936419,0.02611996,2654.3,2654.2,0.19603061]
[1643817936616,0.02611996,2654.3,2653.5,2.31504601]
[1643817936816,0.1884,2654.6,2654.2,3.74477193]
[1643817937015,0.1884,2654.6,2654.2,3.66855]
[1643817937016,0.02611996,2654.3,2654.2,3.66855]
[1643817937712,0.02611996,2654.3,2654.2,3.87147458]
[1643817938012,0.02611996,2654.3,2654.2,3.8702593]
[1643817938215,0.02611996,2654.5,2654.2,3.8702593]
[1643817938417,0.02611996,2654.5,2654.2,4.7608293]
[1643817938617,0.19351384,2654.6,2654.3,1.12028]
[1643817938815,0.00511384,2654.6,2654.4,2.59779]
[1643817939018,0.00511384,2654.6,2654.5,1.12019]
[1643817939313,0.1882,2655.0,2654.6,0.77520951]
[1643817939314,0.02611996,2654.7,2654.6,0.77520951]
[1643817939573,0.02611996,2654.7,2654.6,0.21202186]
[1643817940366,0.02611996,2654.7,2654.6,0.05408889]
[1643817940767,0.02611996,2654.7,2654.6,0.80273842]
[1643817940969,0.02611996,2654.7,2654.6,0.05408889]
[1643817941374,0.39828135,2654.7,2654.6,0.05408889]
[1643817941575,0.02611996,2654.7,2654.6,0.05408889]
[1643817941967,0.00210329,2655.0,2654.6,0.91682558]
[1643817941968,0.00511406,2654.8,2654.6,0.91682558]
[1643817942168,0.00511406,2654.8,2654.6,0.05408889]
[1643817942169,0.02611996,2654.7,2654.6,0.05408889]
[1643817942467,0.02611996,2654.7,2653.8,2.02096]
[1643817942667,0.02611996,2654.6,2653.9,1.71784]
[1643817942869,0.02611996,2654.6,2654.0,0.01]
[1643817943070,0.02611996,2654.6,2654.3,0.84594782]
[1643817943312,0.0312338,2654.6,2654.4,0.16716048]
[1643817943507,0.0312338,2654.6,2654.4,0.17716048]
[1643817944109,0.02611996,2654.6,2654.4,0.17716048]
[1643817944503,0.00511413,2654.6,2654.4,0.17716048]
[1643817944706,0.02045346,2655.0,2654.4,0.17716048]
[1643817944707,0.02045346,2655.0,2654.5,7.52004269]
[1643817945006,0.02045346,2655.0,2654.6,1.35222]
[1643817945202,0.02045346,2655.0,2654.7,1.71733]
[1643817945403,0.1882,2656.0,2654.8,0.01]
[1643817945603,0.02611996,2655.7,2654.8,0.01]
[1643817945808,0.02611996,2655.7,2654.9,1.7072]
[1643817946005,0.02611996,2655.7,2655.0,0.01]
[1643817946305,0.1882,2655.8,2655.0,1.71714]
[1643817946306,0.02611996,2655.5,2655.0,1.71714]
[1643817946505,0.33566452,2655.4,2655.1,1.12995]
[1643817946710,0.1882,2656.0,2655.2,0.22513279]
[1643817946711,0.86382999,2656.0,2655.2,0.22513279]
[1643817946905,0.00511371,2655.5,2655.2,0.22513279]
[1643817947167,0.33616419,2655.4,2655.2,0.22513279]
[1643817947356,0.33616419,2655.4,2655.3,2.82444728]
[1643817947558,0.33616419,2655.4,2655.3,0.72444728]
[1643817947757,0.33618515,2655.4,2655.3,0.72444728]
[1643817947957,0.00511371,2655.5,2655.3,0.72444728]
[1643817948156,0.33618515,2655.4,2655.3,0.72444728]
[1643817948958,0.33618515,2655.4,2655.3,2.73428728]
[1643817949156,0.33107698,2655.4,2655.3,2.73428728]
[1643817949758,0.00511371,2655.5,2655.3,2.73428728]
[1643817949960,0.1882,2656.1,2655.4,5.8]
[1643817950161,1.05622999,2656.6,2655.5,0.95162]
[1643817950358,0.02045166,2655.9,2655.5,1.95162]
[1643817950658,0.02045166,2655.9,2655.6,0.01]
[1643817950905,0.05,2656.6,2655.8,5.8]
[1643817951108,0.20058651,2657.0,2656.0,5.8]
[1643817951109,0.1882,2657.0,2656.0,5.8]
[1643817951310,0.67562999,2657.3,2656.3,0.97388003]
[1643817951311,0.1882,2657.3,2656.3,0.97388003]
[1643817951510,0.86382999,2657.8,2656.3,0.97388003]
[1643817951714,0.82429182,2657.9,2656.3,0.97388003]
[1643817951715,0.82429182,2657.9,2656.7,0.99507112]
[1643817951915,50.0,2658.0,2656.8,0.64045]
[1643817952114,50.0,2658.0,2656.9,0.94089]
[1643817952308,50.0,2658.0,2657.0,0.64045]
[1643817952309,0.02611996,2657.8,2657.0,0.64045]
[1643817952509,0.02611996,2657.2,2657.1,0.22092461]
[1643817952707,50.0,2658.0,2657.1,0.22092461]
[1643817952708,1.01088019,2657.9,2657.1,0.22092461]
[1643817952907,0.02611996,2657.4,2657.1,0.22092461]
[1643817953107,1.01088019,2657.9,2657.1,0.22092461]
[1643817953307,0.188,2657.9,2657.1,0.22092461]
[1643817953509,0.02611996,2657.7,2657.1,0.22092461]
[1643817953709,50.0,2658.0,2657.1,0.22092461]
[1643817953910,0.21296,2657.9,2656.6,0.01]
[1643817954111,0.02611996,2656.7,2656.4,0.01]
[1643817954311,0.01248921,2657.6,2656.3,0.01]
[1643817954312,0.02611996,2656.5,2656.3,0.01]
[1643817954569,0.02611996,2656.5,2656.4,0.71933203]
[1643817954760,0.02611996,2656.7,2656.4,2.42557203]
[1643817954961,0.02611996,2656.7,2656.5,1.88190159]
[1643817955360,0.00509799,2656.6,2656.5,1.88190159]
[1643817955561,0.00509799,2656.6,2656.4,0.71933203]
[1643817955760,0.00509799,2656.6,2656.2,1.33163017]
[1643817955961,0.02038891,2657.0,2656.3,1.05766393]
[1643817956162,0.1882,2657.5,2656.3,0.15989879]
[1643817956360,0.01243748,2657.8,2656.3,0.15989879]
[1643817956361,0.188,2657.7,2656.3,0.15989879]
[1643817956559,0.188,2657.3,2656.3,0.15989879]
[1643817956760,0.188,2657.3,2656.3,0.34834879]
[1643817956962,0.188,2657.7,2656.3,0.34834879]
[1643817957167,1.07658999,2657.7,2657.5,0.18668341]
[1643817957362,0.144,2657.6,2656.2,2.03673]
[1643817957562,0.188,2657.5,2656.9,0.87068656]
[1643817958060,0.21296,2657.7,2656.9,0.87068656]
[1643817958061,0.188,2657.6,2656.9,0.87068656]
[1643817958807,0.188,2657.6,2657.0,0.17463073]
[1643817959004,0.188,2657.6,2657.5,0.21901649]
[1643817959203,0.40096,2657.6,2656.2,1.03673]
[1643817960002,0.40096,2657.6,2656.8,0.85216327]
[1643817960204,0.00510358,2657.0,2656.8,0.85216327]
[1643817960404,0.00510358,2657.0,2656.9,2.27081352]
[1643817960606,0.00510358,2657.0,2656.9,0.17081352]
[1643817961007,0.40096,2657.6,2656.9,0.17081352]
[1643817961205,0.40096,2657.6,2657.5,0.178846]
[1643817961408,0.70096,2657.6,2656.9,0.01]
[1643817961608,0.188,2657.6,2656.8,0.85216327]
[1643817961909,0.90434389,2658.3,2657.0,0.18845]
[1643817961910,0.188,2657.7,2657.0,0.18845]
[1643817962161,0.67562999,2658.3,2656.9,0.01]
[1643817962162,2.43627526,2657.9,2656.9,0.01]
[1643817962465,2.43627526,2657.9,2656.8,0.85216327]
[1643817962466,0.188,2657.8,2656.8,0.85216327]
[1643817962661,0.02041066,2657.7,2657.6,0.74833009]
[1643817962861,0.02041066,2657.7,2657.6,0.19216901]
[1643817963462,0.188,2657.9,2656.6,0.01]
[1643817963664,0.01249924,2657.5,2656.6,0.01]
[1643817963861,0.01249924,2657.5,2656.9,0.81457488]
[1643817964061,0.20049924,2657.5,2656.9,0.81457488]
[1643817964463,0.20049924,2657.5,2657.0,0.20687599]
[1643817964664,0.188,2657.5,2657.0,0.21687599]
[1643817964862,0.98919406,2657.9,2657.0,0.21687599]
[1643817964863,0.188,2657.7,2657.0,0.21687599]
[1643817965072,0.0048167,2657.3,2657.0,0.21687599]
[1643817965816,0.188,2657.8,2657.0,0.21687599]
[1643817966013,0.67562999,2657.6,2657.4,0.184961]
[1643817966214,0.67562999,2657.6,2657.0,0.01]
[1643817966215,0.00481673,2657.3,2657.0,0.01]
[1643817966412,0.00481673,2657.3,2656.4,0.01]
[1643817966815,0.00481673,2657.3,2656.3,0.01]
[1643817967010,0.67562999,2657.5,2656.3,0.01]
[1643817967214,0.67562999,2657.5,2656.3,0.19845]
[1643817967415,0.00358324,2657.0,2656.3,0.19845]
[1643817968010,0.00358324,2657.0,2656.9,0.16601704]
[1643817968211,0.67562999,2657.4,2656.9,0.16601704]
[1643817968413,0.67562999,2657.5,2656.9,0.17601704]
[1643817968612,0.0203608,2657.4,2656.9,0.17601704]
[1643817969112,0.69599079,2657.4,2657.3,0.15872158]
[1643817969312,0.29291331,2657.4,2657.3,0.15872158]
[1643817969564,0.27255251,2657.4,2657.3,0.15872158]
[1643817969753,0.68072101,2657.5,2657.3,0.15872158]
[1643817969956,0.27255251,2657.4,2657.3,0.16872158]
[1643817970258,0.27255251,2657.4,2656.4,0.01]
[1643817970455,0.67562999,2657.3,2656.4,0.01]
[1643817970855,0.00373305,2657.0,2656.3,0.19845]
[1643817971057,0.00373305,2657.0,2656.3,0.01]
[1643817971261,1.14011555,2657.0,2656.7,0.17262119]
[1643817971555,1.14011555,2657.0,2656.7,0.1658553]
[1643817971556,0.88858999,2656.8,2656.7,0.1658553]
[1643817971755,1.1611425,2656.8,2656.7,0.1658553]
[1643817972056,0.27255251,2656.8,2656.7,0.1658553]
[1643817972255,0.67562999,2656.8,2656.7,0.1658553]
[1643817972457,0.27255251,2656.8,2656.7,0.1658553]
[1643817972655,0.9481825,2656.9,2656.7,0.1658553]
[1643817973313,0.27764964,2656.9,2656.7,0.1658553]
[1643817973511,0.27255251,2656.8,2656.7,0.1658553]
[1643817974810,0.6955297,2656.8,2656.7,0.1658553]
[1643817975213,0.27255251,2656.8,2656.7,0.1658553]
[1643817975415,0.96808221,2656.8,2656.7,0.1658553]
[1643817975712,0.96808221,2656.8,2655.9,1.2309]
[1643817975713,0.96808221,2656.8,2655.9,0.57938529]
[1643817975912,0.90434389,2657.1,2655.7,1.18845]
[1643817975913,0.27255251,2656.7,2656.1,0.00454878]
[1643817976111,0.27255251,2656.6,2656.2,0.21791461]
[1643817976312,0.27255251,2656.5,2656.2,0.21791461]
[1643817976513,0.00509715,2656.9,2656.3,2.94923908]
[1643817976514,0.27255251,2656.4,2656.3,2.94923908]
[1643817977555,0.27255251,2656.4,2656.3,0.84923908]
[1643817977754,0.27255251,2656.4,2656.2,0.21791461]
[1643817977959,0.27255251,2656.3,2656.2,0.21791461]
[1643817978555,0.27628507,2656.7,2656.2,0.21791461]
[1643817978854,0.27255251,2656.6,2656.2,0.21791461]
[1643817979054,0.27255251,2656.5,2656.2,0.21791461]
[1643817979255,0.27255251,2656.4,2656.3,0.90978489]
[1643817979456,0.1882,2657.0,2656.3,0.90978489]
[1643817979457,0.0037327,2656.7,2656.3,0.90978489]
[1643817980458,0.96808221,2656.8,2656.3,0.90978489]
[1643817980656,1.09254389,2657.0,2656.3,0.90978489]
[1643817980657,0.97181498,2656.7,2656.3,0.90978489]
[1643817980906,0.6955297,2656.5,2656.3,0.90978489]
[1643817981105,0.27255251,2656.6,2656.3,0.90978489]
[1643817981106,0.27255251,2656.4,2656.3,0.91978489]
[1643817981310,0.27255251,2656.4,2656.3,0.90978489]
[1643817981707,0.27255251,2656.4,2656.3,3.80978489]
[1643817982310,0.21195251,2656.4,2656.3,0.90978489]
[1643817984208,0.11195251,2656.4,2656.3,0.90978489]
[1643817986053,0.11195251,2656.4,2656.3,0.84274489]
[1643817986253,0.11195251,2656.4,2656.3,0.72168489]
[1643817987253,0.80748221,2656.4,2656.3,0.72168489]
[1643817987455,0.11195251,2656.4,2656.3,0.72168489]
[1643817987653,0.11195251,2656.4,2656.2,0.21791461]
[1643817987859,0.6955297,2656.4,2656.2,0.21791461]
[1643817988060,0.6955297,2656.6,2656.2,0.21791461]
[1643817988306,0.6955297,2656.4,2656.2,0.21106461]
[1643817988503,0.6955297,2656.5,2656.2,0.19194461]
[1643817988705,0.1882,2657.1,2656.2,0.19194461]
[1643817988706,0.6955297,2656.4,2656.2,0.19194461]
[1643817988904,0.90434389,2656.6,2656.3,0.7223953]
[1643817989307,0.90434389,2656.5,2656.3,0.7223953]
[1643817989707,0.90434389,2656.5,2656.2,0.19194461]
[1643817989911,0.90434389,2656.4,2656.2,0.19194461]
[1643817990115,1.38177036,2656.3,2655.5,0.01]
[1643817990409,0.70138822,2655.8,2655.5,0.01]
[1643817990610,0.70138822,2655.6,2655.2,0.01]
[1643817990815,0.93518429,2655.8,2655.5,0.86976403]
[1643817991210,0.1882,2655.9,2654.9,0.01]
[1643817991211,0.93518429,2655.7,2654.9,0.01]
[1643817991462,0.70128137,2655.1,2654.8,0.01]
[1643817991616,1.7949,2655.8,2654.6,0.01]
[1643817991617,0.70128137,2655.0,2654.6,0.01]
[1643817991812,0.70128137,2655.0,2654.1,0.01]
[1643817992059,0.70128137,2654.9,2654.2,0.2046496]
[1643817992257,0.70128137,2654.8,2654.5,0.70557382]
[1643817992457,0.70128137,2654.8,2654.6,0.18780875]
[1643817992758,0.70128137,2654.9,2654.6,0.18780875]
[1643817992959,1.51997033,2655.4,2654.6,0.18780875]
[1643817992960,0.70128137,2655.0,2654.6,0.18780875]
[1643817993558,0.70128137,2655.1,2654.6,0.18780875]
[1643817993759,0.70128137,2655.1,2654.9,0.80012808]
[1643817993958,0.70128137,2655.2,2654.9,0.80012808]
[1643817994357,2.42560623,2655.2,2654.7,0.01447179]
[1643817994557,2.42560623,2655.2,2654.7,0.00447179]
[1643817994760,0.70128137,2655.4,2654.6,0.18780875]
[1643817994962,1.38177036,2655.8,2654.8,0.95853294]
[1643817994963,0.1882,2655.7,2654.8,0.95853294]
[1643817995161,0.3101,2655.9,2654.9,0.452]
[1643817995162,1.24514182,2655.9,2654.9,0.452]
[1643817995361,1.24514182,2655.9,2654.9,0.462]
[1643817995562,0.3101,2655.9,2655.0,1.89682622]
[1643817995819,0.3101,2655.9,2655.2,0.99999999]
[1643817996020,0.3101,2655.9,2655.3,1.28886658]
[1643817996213,0.3101,2655.9,2655.4,1.01861972]
[1643817996414,0.3101,2655.9,2655.5,0.462]
[1643817997415,1.24514182,2655.9,2655.5,0.462]
[1643817997617,0.0001,2655.9,2655.5,1.59208]
[1643817997821,0.0001,2655.9,2655.6,0.01]
[1643817998015,0.0001,2655.9,2655.7,0.452]
[1643817998637,0.0001,2655.9,2655.4,0.84918782]
[1643817998819,0.0001,2655.9,2654.5,6.72023777]
[1643817998820,1.93504182,2655.5,2654.9,1.88341]
[1643817999119,1.93504182,2655.5,2654.5,6.60704337]
[1643817999120,0.93504182,2655.0,2654.5,0.01609127]
[1643817999318,0.94728648,2655.0,2654.5,0.01609127]
[1643817999558,0.93504182,2654.7,2654.5,0.01609127]
[1643817999759,3.2882,2654.6,2654.5,0.01609127]
[1643817999963,3.2882,2654.6,2653.0,13.33434]
[1643817999964,3.23819997,2654.6,2653.5,0.18845]
[1643818000161,3.23819997,2654.6,2653.2,0.18845]
[1643818000162,0.1882,2654.5,2653.2,0.18845]
[1643818000358,0.1882,2654.5,2653.9,0.52164011]
[1643818001362,0.1882,2654.5,2654.1,0.00132612]
[1643818001764,1.0,2654.3,2654.1,0.00132612]
[1643818001966,5.69394894,2654.2,2653.9,6.623e-05]
[1643818002263,0.93504182,2654.1,2653.9,6.623e-05]
[1643818002463,5.78098,2654.0,2653.9,6.623e-05]
[1643818002663,6.08098,2654.0,2653.9,6.623e-05]
[1643818002862,1.43098,2654.0,2653.9,6.623e-05]
[1643818003066,0.333,2654.0,2653.9,6.623e-05]
[1643818003307,0.1882,2654.0,2653.9,6.623e-05]
[1643818003908,2.10808143,2654.1,2654.0,0.1623563]
[1643818004107,2.32773171,2654.1,2654.0,0.1623563]
[1643818004506,2.32773171,2654.1,2653.9,6.623e-05]
[1643818004707,0.21965028,2654.0,2653.9,6.623e-05]
[1643818004907,2.10808143,2654.1,2653.9,6.623e-05]
[1643818005205,0.21942041,2654.0,2653.9,6.623e-05]
[1643818005407,0.21942041,2654.0,2653.9,0.22137889]
[1643818006006,0.03395241,2654.0,2653.9,0.22137889]
[1643818006707,2.10808143,2654.1,2653.9,6.623e-05]
[1643818007767,2.10808143,2654.1,2654.0,0.89243133]
[1643818007963,2.10808143,2654.1,2654.0,0.21052282]
[1643818008163,0.00305344,2654.4,2654.0,0.21052282]
[1643818008966,0.00305344,2654.4,2654.1,0.452]
[1643818009166,0.00305344,2654.4,2654.1,1.31418858]
[1643818009366,0.00303458,2655.1,2654.2,1.893983]
[1643818009564,0.00303458,2655.1,2654.3,0.01]
[1643818009968,0.00303458,2655.1,2654.5,1.88385]
[1643818010168,0.00303458,2655.1,2654.6,0.01]
[1643818010567,0.00303458,2655.1,2654.7,0.76676748]
[1643818010823,0.00303458,2655.1,2654.7,0.7600887]
[1643818011030,0.00303458,2655.1,2654.6,0.95189]
[1643818011215,0.00303458,2655.1,2654.6,0.01]
[1643818012219,0.69715426,2654.9,2654.6,0.00361946]
[1643818012718,2.10658265,2654.9,2654.6,0.00361946]
[1643818013018,2.40658265,2654.9,2654.6,0.00361946]
[1643818013217,3.10373691,2654.9,2654.6,0.00361946]
[1643818013419,2.10658265,2654.9,2654.6,0.00361946]
[1643818016074,2.10658265,2654.9,2654.5,0.27704492]
[1643818016274,2.10658265,2654.9,2654.4,0.18526787]
[1643818016881,2.10658265,2654.9,2654.8,0.16814606]
[1643818017077,2.80373691,2654.9,2654.8,0.16814606]
[1643818017478,2.29478265,2654.9,2654.8,0.16814606]
[1643818018310,2.50774265,2654.9,2654.8,0.16814606]
[1643818018508,2.50774265,2654.9,2653.8,1.0]
[1643818018509,2.31954265,2654.9,2653.8,1.0]
[1643818018710,3.01669691,2654.9,2653.8,1.0]
[1643818018909,3.01669691,2654.9,2653.9,0.94221]
[1643818019113,2.80373691,2654.9,2653.9,0.94221]
[1643818019314,0.70022657,2654.8,2653.7,1.1568]
[1643818019510,0.70022657,2654.8,2654.0,0.00439605]
[1643818019511,0.88842657,2654.8,2654.0,0.00439605]
[1643818019710,0.88842657,2654.8,2654.6,0.21940982]
[1643818020112,0.19127231,2654.8,2654.6,0.21940982]
[1643818020917,0.69715426,2654.7,2653.8,0.452]
[1643818021114,0.69732052,2654.6,2653.7,0.01]
[1643818021320,0.69732052,2654.3,2653.7,0.01]
[1643818021513,0.69732052,2654.3,2653.2,0.01]
[1643818021514,0.69732052,2654.2,2653.2,0.01]
[1643818021714,0.22605206,2654.9,2653.4,5.75]
[1643818021918,0.22605206,2654.9,2654.7,0.01253334]
[1643818022163,2.15233418,2655.1,2654.7,0.01253334]
[1643818022363,0.1882,2655.5,2653.9,0.02085282]
[1643818022364,2.3,2654.8,2653.9,0.02085282]
[1643818022560,1.39477971,2655.3,2653.9,0.94225]
[1643818022761,2.34053418,2655.4,2654.0,2.60433418]
[1643818022762,0.1882,2655.4,2654.0,2.60433418]
[1643818022965,0.19614799,2655.7,2654.4,0.01270233]
[1643818022966,0.1882,2655.6,2654.4,0.01270233]
[1643818023362,1.39477971,2655.5,2654.4,0.01270233]
[1643818023561,0.1882,2655.4,2654.4,0.01270233]
[1643818023764,0.1882,2655.4,2654.3,0.01]
[1643818023765,0.1882,2655.4,2654.6,0.72309065]
[1643818023962,0.1882,2655.4,2654.4,0.01]
[1643818024163,0.00306759,2654.7,2654.3,0.01]
[1643818024363,0.00306759,2654.7,2654.3,0.9474776]
[1643818024572,0.00306759,2654.7,2654.3,0.0152476]
[1643818024763,0.00306759,2654.7,2654.3,0.0052476]
[1643818024964,0.00306759,2654.7,2654.4,0.18402575]
[1643818025363,0.00306759,2654.7,2654.4,0.19402575]
[1643818025813,0.00306759,2654.7,2654.5,0.82978276]
[1643818026012,0.00306759,2654.7,2654.5,0.83978276]
[1643818026410,0.00306759,2654.7,2654.5,1.78195276]
[1643818026608,0.00306759,2654.7,2654.5,1.80012959]
[1643818026809,0.00306759,2654.7,2654.6,5.75]
[1643818027009,0.00306759,2654.7,2654.6,6.202]
[1643818028113,0.00306759,2654.7,2654.5,0.83978276]
[1643818028711,0.19731977,2654.7,2654.5,0.01]
[1643818028914,4.00705218,2654.6,2653.4,3.76803]
[1643818029114,3.12766227,2654.5,2654.1,0.01748047]
[1643818029313,0.49425218,2654.4,2654.1,0.01748047]
[1643818029563,0.5128,2654.6,2654.1,0.01748047]
[1643818029564,0.38245218,2654.3,2654.1,0.01748047]
[1643818029767,0.40705218,2654.2,2654.1,0.01748047]
[1643818030061,0.40705218,2654.2,2654.0,0.16139245]
[1643818030363,0.38245218,2654.1,2653.1,1.88493]
[1643818030561,0.19425218,2654.0,2653.1,1.88493]
[1643818030864,0.19425218,2653.9,2652.8,0.94271]
[1643818031072,0.19425218,2653.8,2652.8,0.94271]
[1643818031263,0.19425218,2653.8,2652.7,0.0012578]
[1643818031264,0.2128,2653.6,2652.7,0.0012578]
[1643818031464,0.38265218,2653.5,2652.7,0.0012578]
[1643818031667,0.19425218,2653.4,2652.7,0.0012578]
[1643818031860,0.59545218,2653.3,2652.7,0.0012578]
[1643818032062,0.19425218,2653.2,2652.7,0.0012578]
[1643818032262,0.19425218,2653.1,2652.7,0.19705327]
[1643818032464,0.19425218,2653.0,2652.7,0.19705327]
[1643818032662,0.40705218,2652.9,2652.7,0.19705327]
[1643818032862,0.19425218,2652.8,2652.1,0.0012578]
[1643818033063,0.19425218,2652.7,2652.1,0.0012578]
[1643818033321,0.94334,2652.5,2652.1,0.0012578]
[1643818033516,0.4013,2652.4,2651.9,0.6012578]
[1643818033916,0.7013,2652.4,2652.0,0.20344544]
[1643818034219,0.4013,2652.7,2652.2,0.00436232]
[1643818034417,0.2128,2652.7,2652.2,0.00436232]
[1643818034621,0.07987002,2652.6,2652.2,0.00436232]
[1643818035021,0.07987002,2652.6,2652.1,0.0012578]
[1643818035219,0.26837002,2652.6,2652.3,0.00436207]
[1643818035420,0.07987002,2652.5,2652.3,0.00436207]
[1643818035819,0.2128,2652.4,2652.3,0.00436207]
[1643818036020,3.59267002,2652.4,2651.9,0.46545171]
[1643818036220,0.07987002,2652.3,2651.9,0.4480008]
[1643818036418,0.07987002,2652.3,2651.9,0.46545204]
[1643818036820,0.07987002,2652.3,2650.8,0.011221]
[1643818036821,4.15,2652.2,2650.9,1.88655]
[1643818037061,4.15,2652.2,2650.2,4.64320804]
[1643818037062,0.21323544,2651.6,2650.7,0.01815581]
[1643818037363,0.2128,2651.4,2650.6,0.001221]
[1643818037562,0.2128,2651.4,2649.0,2.40962539]
[1643818037563,1.01276416,2651.0,2649.0,2.40962539]
[1643818037864,1.01276416,2651.0,2649.1,1.47505192]
[1643818037865,5.80466734,2650.9,2649.1,1.47505192]
[1643818038058,1.94395,2650.8,2649.2,1.47505192]
[1643818038257,1.94395,2650.8,2649.3,1.47505192]
[1643818038258,0.1885,2650.7,2649.3,1.47505192]
[1643818038562,0.90919485,2650.6,2649.6,0.22483881]
[1643818038757,0.90919485,2650.6,2648.8,1.88773]
[1643818038758,4.9,2650.4,2648.8,1.88773]
[1643818039058,4.9,2650.4,2648.7,2.1295521]
[1643818039059,6.06796737,2650.3,2649.9,0.00130072]
[1643818039260,6.3569937,2650.0,2649.9,0.00130072]
[1643818039460,6.5454937,2650.0,2649.9,0.00130072]
[1643818039661,2.43271,2650.0,2649.9,0.00130072]
[1643818039860,1.43271,2650.0,2648.8,0.00122176]
[1643818040060,0.4015,2649.9,2649.1,0.83189822]
[1643818040273,1.0,2650.7,2649.1,0.83189822]
[1643818040274,0.2458,2650.3,2649.2,0.00122176]
[1643818040468,0.0571,2650.0,2649.4,0.03366615]
[1643818040658,0.1885,2650.7,2649.4,0.01256455]
[1643818040659,0.2456,2650.7,2649.4,0.01256455]
[1643818040920,0.21644641,2650.6,2650.0,0.20626763]
[1643818041119,0.21644641,2650.6,2650.0,0.00122176]
[1643818041322,1.33373641,2650.6,2650.0,0.00122176]